Department Family,Entity,Date of Payment,GL Description,Expense Area,Supplier,Voluntary & Community Sector,SME Class,Sole Trader,Transaction number,Purchaing Item Text,Postal Code,Amount in Sterling,Grant?
MHCLG,PINS,01/08/2018,Agency Staff,Planning Casework Operations,REED SPECIALIST RECRUITMENT LTD,,Large,,5106238194,CLASSIC CASEWORK - ES,SW20 0BA,670.14,
MHCLG,PINS,01/08/2018,Agency Staff,Planning Casework Operations,REED SPECIALIST RECRUITMENT LTD,,Large,,5106238195,CLASSIC CASEWORK - KR,SW20 0BA,495.72,
MHCLG,PINS,01/08/2018,Agency Staff,Planning Casework Operations,REED SPECIALIST RECRUITMENT LTD,,Large,,5106238196,Agency AO MR,SW20 0BA,498.17,
MHCLG,PINS,01/08/2018,Agency Staff,"Finance, Commercial & Performance",REED SPECIALIST RECRUITMENT LTD,,Large,,5106238220,EO For Finance,SW20 0BA,554.11,
MHCLG,PINS,01/08/2018,Agency Staff,"Finance, Commercial & Performance",REED SPECIALIST RECRUITMENT LTD,,Large,,5106238221,EO For Finance,SW20 0BA,715.73,
MHCLG,PINS,01/08/2018,Agency Staff,"Finance, Commercial & Performance",REED SPECIALIST RECRUITMENT LTD,,Large,,5106238222,EO For Finance,SW20 0BA,958.15,
MHCLG,PINS,01/08/2018,Agency Staff,Planning Casework Operations,REED SPECIALIST RECRUITMENT LTD,,Large,,5106238224,AO AGENCY STAFF JJF,SW20 0BA,612.00,
MHCLG,PINS,01/08/2018,Agency Staff,"Finance, Commercial & Performance",REED SPECIALIST RECRUITMENT LTD,,Large,,5106238233,EO For Finance,SW20 0BA,432.90,
MHCLG,PINS,01/08/2018,"Furniture, Fittings and carpets",TR Organisational Agility,AMARELLE LTD,,Small,,5106238241,Main Works,BS2 0QD,"37,923.30",
MHCLG,PINS,01/08/2018,NSI Fees & Expenses,NSI Fees Planning,D C PLANNING LTD,,Data Not Provided,,2100063022,,BH14 8AL,"2,352.00",
MHCLG,PINS,01/08/2018,NSI Fees & Expenses,NSI Expenses Planning,D C PLANNING LTD,,Data Not Provided,,2100063022,,BH14 8AL,290.69,
MHCLG,PINS,01/08/2018,NSI Fees & Expenses,NSI Fees Planning,INSPIRE PLANNING SOLUTIONS,,Micro,,2100063019,,SK3 0XA,"6,417.60",
MHCLG,PINS,01/08/2018,NSI Fees & Expenses,NSI Expenses Planning,INSPIRE PLANNING SOLUTIONS,,Micro,,2100063019,,SK3 0XA,"1,392.19",
MHCLG,PINS,01/08/2018,NSI Fees & Expenses,NSI Fees Planning,LEIGH & GLENNIE LTD,,Micro,,2100063025,,SL5 9EA,"2,016.00",
MHCLG,PINS,01/08/2018,NSI Fees & Expenses,NSI Expenses Planning,LEIGH & GLENNIE LTD,,Micro,,2100063025,,SL5 9EA,86.88,
MHCLG,PINS,01/08/2018,Safety equipment,Business Support,BURLINGTON'S UNIFORMS LTD,,Small,,5106238236,PPE P&P,EN3 7PX,9.00,
MHCLG,PINS,01/08/2018,Safety equipment,Business Support,BURLINGTON'S UNIFORMS LTD,,Small,,5106238236,PPE for New Inspector Intake,EN3 7PX,266.02,
MHCLG,PINS,01/08/2018,TSOL Adverse Costs,"Policy, Knowledge & Quality",GOVERNMENT LEGAL DEPARTMENT,,Public Bodies,,2100063023,,WC2B 4TS,"7,000.00",
MHCLG,PINS,02/08/2018,Agency Staff,"Finance, Commercial & Performance",REED SPECIALIST RECRUITMENT LTD,,Large,,5106236785,EO For Finance,SW20 0BA,818.35,
MHCLG,PINS,02/08/2018,Agency Staff,Inspector Development & Support Team,REED SPECIALIST RECRUITMENT LTD,,Large,,5106237368,Temp staff for IDST,SW20 0BA,587.70,
MHCLG,PINS,02/08/2018,Conferences and Meeting Facilities,TR People,CALDER CONFERENCES LIMITED,,Small,,5106238255, Event,LS16 6RF,"6,740.88",
MHCLG,PINS,02/08/2018,Conferences and Meeting Facilities,TR People,SWG EVENTS LTD,,Micro,,5106238259,Event ,BS35 4HA,"13,103.94",
MHCLG,PINS,02/08/2018,IT SUPPORT,TR Digital Transformation,HAYS SPECIALIST RECRUITMENT LTD,,Large,,5106238138,Commercial Digital Category Mgr,NW1 2AF,"3,497.28",
MHCLG,PINS,02/08/2018,IT SUPPORT,TR Digital Transformation,HAYS SPECIALIST RECRUITMENT LTD,,Large,,5106238143,Commercial Digital Category Mgr,NW1 2AF,"3,497.28",
MHCLG,PINS,02/08/2018,Legal Fees,"Policy, Knowledge & Quality",GOVERNMENT LEGAL DEPT,,Public Bodies,,5106238260,Disbursements,WC2B 4TS,"20,081.67",
MHCLG,PINS,02/08/2018,Legal Fees,"Policy, Knowledge & Quality",GOVERNMENT LEGAL DEPT,,Public Bodies,,5106238260,Fees and Charges,WC2B 4TS,"43,350.75",
MHCLG,PINS,02/08/2018,NSI Fees & Expenses,NSI Fees Planning,GARY DEANE ASSOCIATES LIMITED,,Micro,,2100063056,,M33 6RG,"2,016.00",
MHCLG,PINS,02/08/2018,NSI Fees & Expenses,NSI Expenses Planning,GARY DEANE ASSOCIATES LIMITED,,Micro,,2100063056,,M33 6RG,227.88,
MHCLG,PINS,02/08/2018,NSI Fees & Expenses,NSI Fees Planning,H J L PLANNING,,Micro,,2100063057,,CM3 1HZ,"1,120.00",
MHCLG,PINS,02/08/2018,NSI Fees & Expenses,NSI Expenses Planning,H J L PLANNING,,Micro,,2100063057,,CM3 1HZ,33.75,
MHCLG,PINS,02/08/2018,NSI Fees & Expenses,NSI Fees Planning,MARTIN ANDREWS PLANNING CONSULTANCY,,Micro,,2100063055,,BH15 1HH,"2,016.00",
MHCLG,PINS,02/08/2018,NSI Fees & Expenses,NSI Expenses Planning,MARTIN ANDREWS PLANNING CONSULTANCY,,Micro,,2100063055,,BH15 1HH,123.84,
MHCLG,PINS,02/08/2018,NSI Fees & Expenses,NSI Fees Planning,STAR PLANNING & DEVELOPMENT LTD,,Micro,,2100063054,,B14 6BX,"5,376.00",
MHCLG,PINS,02/08/2018,NSI Fees & Expenses,NSI Expenses Planning,STAR PLANNING & DEVELOPMENT LTD,,Micro,,2100063054,,B14 6BX,331.07,
MHCLG,PINS,02/08/2018,Office machinery consumables,Business Support,X M A LIMITED,,Data Not Provided,,5106238261,Office Machine Consumables 18-19,NG11 7EP,348.90,
MHCLG,PINS,02/08/2018,Office Supplies,Business Support,BANNER BUSINESS SUPPLIES LTD,,Large,,5106238267,Office Stationery 18-19,S9 1XU,149.82,
MHCLG,PINS,02/08/2018,Office Supplies,Business Support,BANNER BUSINESS SUPPLIES LTD,,Large,,5106238267,Paper 18-19,S9 1XU,224.60,
MHCLG,PINS,02/08/2018,Payroll Services,Human Resources,CGI IT UK LIMITED,,Large,,5106238256,Payroll Service 2018/19,CF31 9AP,"5,357.82",
MHCLG,PINS,02/08/2018,Rent,Wales Director,WELSH GOVERNMENT,,Public Bodies,,2100063101,Office Rental,CF10 3NQ,"-40,656.45",
MHCLG,PINS,02/08/2018,Rent,Wales Director,WELSH GOVERNMENT,,Public Bodies,,5106238278,Office Rental,CF10 3NQ,"40,656.45",
MHCLG,PINS,02/08/2018,Training,TR People,TOTAL CONFLICT MANAGEMENT LTD,,Micro,,5106238257,Mediation Training (cohort 2),N1 0QH,"9,336.00",
MHCLG,PINS,03/08/2018,Agency Staff,TR People,HAYS SPECIALIST RECRUITMENT LTD,,Large,,5106238290,HR BP - SL,NW1 2AF,"3,310.92",
MHCLG,PINS,03/08/2018,Agency Staff,TR People,HAYS SPECIALIST RECRUITMENT LTD,,Large,,5106238291,HR BP - SL,NW1 2AF,"3,310.92",
MHCLG,PINS,03/08/2018,Courier Services,Wales Director,ROYAL MAIL,,Large,,2100063119,Postal Services,S49 1HQ,-557.44,
MHCLG,PINS,03/08/2018,Courier Services,Wales Director,ROYAL MAIL,,Large,,5106238301,Postal Services,S49 1HQ,557.44,
MHCLG,PINS,03/08/2018,Notional Audit Fees,"Finance, Commercial & Performance",H M TREASURY,,Public Bodies,,5106238108,Internal Audit Services,NR7 0HS,"14,025.00",
MHCLG,PINS,03/08/2018,NSI Fees & Expenses,NSI Fees Planning,KIM BENNETT PLANNING SERVICES,,Micro,,2100063102,,CT2 7ET,560.00,
MHCLG,PINS,03/08/2018,NSI Fees & Expenses,NSI Expenses Planning,KIM BENNETT PLANNING SERVICES,,Micro,,2100063102,,CT2 7ET,32.85,
MHCLG,PINS,03/08/2018,Rent,Wales Director,WELSH GOVERNMENT,,Public Bodies,,5106238289,Office Rental,CF10 3NQ,"40,656.45",
MHCLG,PINS,03/08/2018,TSOL Adverse Costs,"Policy, Knowledge & Quality",GOVERNMENT LEGAL DEPARTMENT,,Public Bodies,,2100063058,,WC2B 4TS,"3,909.60",
MHCLG,PINS,03/08/2018,Vehicle hire,Inspector Costs,ENTERPRISE RENT-A-CAR,,Large,,5106238287,Vehicle hire,TW20 9FB,"13,666.57",
MHCLG,PINS,06/08/2018,Courier Services,Wales Director,ROYAL MAIL,,Large,,5106238324,Postal Services,S49 1HQ,557.44,
MHCLG,PINS,06/08/2018,EXP � PURCHASE OF GOODS /SERVICES R & D,Research and Development,GOPRO CONSULTING LTD,,Small,,2100063158,ODT Alpha Prototype GP,WC1N 2EB,"-15,140.00",
MHCLG,PINS,06/08/2018,EXP � PURCHASE OF GOODS /SERVICES R & D,Research and Development,GOPRO CONSULTING LTD,,Small,,5106238265,ODT Alpha Prototype GP,WC1N 2EB,"15,140.00",
MHCLG,PINS,06/08/2018,EXP � PURCHASE OF GOODS /SERVICES R & D,TR Transformation,HAYS SPECIALIST RECRUITMENT LTD,,Large,,5106238284,ODT Benefits Analyst Resource,NW1 2AF,"2,983.75",
MHCLG,PINS,06/08/2018,IT SUPPORT,TR Digital Transformation,HAYS SPECIALIST RECRUITMENT LTD,,Large,,5106238286,IT Business Analyst Resource,NW1 2AF,"3,197.28",
MHCLG,PINS,06/08/2018,Physical Storage,Business Support,TNT UK LTD,,Large,,5106238325,Physical Storage,DE11 1EG,"1,609.07",
MHCLG,PINS,06/08/2018,Physical Storage,Business Support,TNT UK LTD,,Large,,5106238326,Physical Storage,DE11 1EG,"1,609.24",
MHCLG,PINS,06/08/2018,Physical Storage,Business Support,TNT UK LTD,,Large,,5106238327,Physical Storage,DE11 1EG,"1,455.59",
MHCLG,PINS,06/08/2018,Vehicle hire,Business Support,ENTERPRISE RENT-A-CAR,,Large,,5106238299,Repair damage to hire car,TW20 9FB,705.26,
MHCLG,PINS,06/08/2018,Vehicle hire,Business Support,ENTERPRISE RENT-A-CAR,,Large,,5106238300,Repair damage to hire car,TW20 9FB,"1,072.67",
MHCLG,PINS,06/08/2018,Web Services,TR Digital Transformation,PHOENIX SOFTWARE,,Medium,,5106238331,Microsoft Enterprise Mobility + Security,YO42 1NS,"1,309.04",
MHCLG,PINS,07/08/2018,Agency Staff,Transformation Prog Management Office,REED SPECIALIST RECRUITMENT LTD,,Large,,5106238355,Programme Support role SB,SW20 0BA,776.29,
MHCLG,PINS,07/08/2018,Agency Staff,Transformation Prog Management Office,REED SPECIALIST RECRUITMENT LTD,,Large,,5106238358,Programme Support Role,SW20 0BA,661.75,
MHCLG,PINS,07/08/2018,Agency Staff,TR Digital Transformation,REED SPECIALIST RECRUITMENT LTD,,Large,,5106238363,Build Suport,SW20 0BA,"1,012.96",
MHCLG,PINS,07/08/2018,Agency Staff,"Policy, Knowledge & Quality",REED SPECIALIST RECRUITMENT LTD,,Large,,5106238366,Agency Staff for Library,SW20 0BA,591.74,
MHCLG,PINS,07/08/2018,Agency Staff,Governance & Strategic Support,REED SPECIALIST RECRUITMENT LTD,,Large,,5106238367,Agency Staff DB,SW20 0BA,945.83,
MHCLG,PINS,07/08/2018,Agency Staff,Enforcements,REED SPECIALIST RECRUITMENT LTD,,Large,,5106238368,Agency Staff RT,SW20 0BA,676.66,
MHCLG,PINS,07/08/2018,Agency Staff,"Finance, Commercial & Performance",REED SPECIALIST RECRUITMENT LTD,,Large,,5106238371,EO For Finance,SW20 0BA,857.52,
MHCLG,PINS,07/08/2018,IT - Service Contracts,ICT Digital Services,ZSAH LTD,,Small,,5106238279,Extension of PINS contract 17/12/710,SW7 3HE,"4,098.26",
MHCLG,PINS,07/08/2018,IT - Software Maintenance,ICT Digital Services,TOWERS WATSON LIMITED,,Large,,5106238372,JEGS software rental fee,WC1V 6TP,"2,394.00",
MHCLG,PINS,07/08/2018,IT SUPPORT,ICT Digital Services,METHODS PROFESSIONAL SERVICES,,Small,,5106238390,Programme Manager Contract,EC1A 4EN,"22,200.00",
MHCLG,PINS,07/08/2018,NSI Fees & Expenses,NSI Fees Planning,FITZSIMON PLANNING & DEVELOPMENT,,Micro,,2100063155,,CH7 5NL,"1,652.00",
MHCLG,PINS,07/08/2018,Recruitment/Procurement Advertising,Human Resources,HAYMARKET MEDIA GROUP LIMITED,,Data Not Provided,,5106238391,External Recuruitment (appointable INSP),TW1 3SP,"1,752.00",
MHCLG,PINS,07/08/2018,Travel and Subsistence Account,Inspector Costs,REDFERN TRAVEL LIMITED,,Small,,5106238392,Air travel,BD1 3AZ,705.26,
MHCLG,PINS,07/08/2018,Travel and Subsistence Account,Inspector Costs,REDFERN TRAVEL LIMITED,,Small,,5106238392,Billback Fee,BD1 3AZ,21.60,
MHCLG,PINS,07/08/2018,Travel and Subsistence Account,Inspector Costs,REDFERN TRAVEL LIMITED,,Small,,5106238392,Rail Travel,BD1 3AZ,"32,662.91",
MHCLG,PINS,07/08/2018,Travel and Subsistence Account,Inspector Costs,REDFERN TRAVEL LIMITED,,Small,,5106238392,Hotel Accommodation,BD1 3AZ,"72,909.20",
MHCLG,PINS,07/08/2018,Travel and Subsistence Account,Inspector Costs,REDFERN TRAVEL LIMITED,,Small,,5106238392,Hotel Fees,BD1 3AZ,351.01,
MHCLG,PINS,08/08/2018,Agency Staff,TR People,HAYS SPECIALIST RECRUITMENT LTD,,Large,,5106238400,HR BP - SL,NW1 2AF,"3,285.72",
MHCLG,PINS,08/08/2018,Agency Staff,Planning Casework Operations,REED SPECIALIST RECRUITMENT LTD,,Large,,5106237369,AO AGENCY STAFF EJ,SW20 0BA,607.96,
MHCLG,PINS,08/08/2018,Agency Staff,Planning Casework Operations,REED SPECIALIST RECRUITMENT LTD,,Large,,5106238365,CLASSIC CASEWORK - ES,SW20 0BA,670.14,
MHCLG,PINS,08/08/2018,Agency Staff,Planning Casework Operations,REED SPECIALIST RECRUITMENT LTD,,Large,,5106238369,Agency AO MR,SW20 0BA,543.46,
MHCLG,PINS,08/08/2018,Agency Staff,Planning Casework Operations,REED SPECIALIST RECRUITMENT LTD,,Large,,5106238410,CLASSIC CASEWORK - KR,SW20 0BA,679.32,
MHCLG,PINS,08/08/2018,Agency Staff,Inspector Development & Support Team,REED SPECIALIST RECRUITMENT LTD,,Large,,5106238424,Temp staff for IDST,SW20 0BA,544.61,
MHCLG,PINS,08/08/2018,Agency Staff,Planning Casework Operations,REED SPECIALIST RECRUITMENT LTD,,Large,,5106238429,CLASSIC CASEWORK - CM,SW20 0BA,685.80,
MHCLG,PINS,08/08/2018,IT - Software Maintenance,ICT Digital Services,METHODS PROFESSIONAL SERVICES,,Small,,2100063217,DCS review business analyst,EC1A 4EN,"-14,223.00",
MHCLG,PINS,08/08/2018,IT - Software Maintenance,ICT Digital Services,METHODS PROFESSIONAL SERVICES,,Small,,5106238283,DCS review business analyst,EC1A 4EN,"14,223.00",
MHCLG,PINS,08/08/2018,IT SUPPORT,ICT Digital Services,THIRTY FOUR FEET LTD,,Micro,,5106238359,IT tester services - contract extension,NP15 1QB,"2,100.00",
MHCLG,PINS,08/08/2018,NSI Fees & Expenses,NSI Fees Planning,DESIGN 2,,Micro,,2100063152,,PO20 0HX,"1,344.00",
MHCLG,PINS,08/08/2018,NSI Fees & Expenses,NSI Expenses Planning,DESIGN 2,,Micro,,2100063152,,PO20 0HX,81.36,
MHCLG,PINS,08/08/2018,NSI Fees & Expenses,NSI Fees Planning,MARTIN ANDREWS PLANNING CONSULTANCY,,Micro,,2100063185,,BH15 1HH,"1,680.00",
MHCLG,PINS,08/08/2018,NSI Fees & Expenses,NSI Expenses Planning,MARTIN ANDREWS PLANNING CONSULTANCY,,Micro,,2100063185,,BH15 1HH,143.28,
MHCLG,PINS,08/08/2018,NSI Fees & Expenses,NSI Fees Planning,MR R J MAILE,,Not assigned,,2100063188,,BN11 1QG,"3,024.00",
MHCLG,PINS,08/08/2018,Web Services,ICT Digital Services,MEMSET LIMITED,,Small,,5106238354,Hosting of mini servers FY 2018-19,GU6 8TB,"1,177.02",
MHCLG,PINS,08/08/2018,Web Services,ICT Digital Services,MEMSET LIMITED,,Small,,5106238356,Hosting of mini servers FY 2018-19,GU6 8TB,665.10,
MHCLG,PINS,09/08/2018,NSI Fees & Expenses,NSI Fees Planning,S P PLANNING,,Small,,2100063186,,EC1M 5QA,"2,016.00",
MHCLG,PINS,09/08/2018,Office Supplies,Business Support,BANNER BUSINESS SUPPLIES LTD,,Large,,5106238445,Office Stationery 18-19,S9 1XU,131.13,
MHCLG,PINS,09/08/2018,Office Supplies,Business Support,BANNER BUSINESS SUPPLIES LTD,,Large,,5106238445,Paper 18-19,S9 1XU,199.87,
MHCLG,PINS,09/08/2018,TSOL Adverse Costs,"Policy, Knowledge & Quality",GOVERNMENT LEGAL DEPARTMENT,,Public Bodies,,2100063190,,WC2B 4TS,"5,500.00",
MHCLG,PINS,10/08/2018,EXP � PURCHASE OF GOODS /SERVICES R & D,Research and Development,FIRMSTEP LTD,,Data Not Provided,,5106238402,ODT Alpha Prototypes FS,EC2A 2DT,"10,120.00",
MHCLG,PINS,10/08/2018,IT SUPPORT,TR Digital Transformation,AIIMI LTD,,Medium,,5106238281,Horizon Stability Patching Variation 2,MK9 1JL,"3,150.00",
MHCLG,PINS,10/08/2018,IT SUPPORT,ICT Digital Services,MEDLEY BUSINESS SOLUTIONS LIMITED,,Medium,,5106238497,Services of a Digital Architect,GU4 8PR,304.20,
MHCLG,PINS,10/08/2018,IT SUPPORT,ICT Digital Services,MEDLEY BUSINESS SOLUTIONS LIMITED,,Medium,,5106238498,Services of a Digital Architect,GU4 8PR,"19,958.40",
MHCLG,PINS,10/08/2018,IT SUPPORT,ICT Digital Services,METHODS PROFESSIONAL SERVICES,,Small,,5106238462,DCS review business analyst,EC1A 4EN,"14,223.00",
MHCLG,PINS,10/08/2018,Office machinery consumables,Business Support,X M A LIMITED,,Data Not Provided,,5106238416,Office Machine Consumables 18-19,NG11 7EP,867.61,
MHCLG,PINS,10/08/2018,Office machinery consumables,Business Support,X M A LIMITED,,Data Not Provided,,5106238482,Office Machine Consumables 18-19,NG11 7EP,"5,287.46",
MHCLG,PINS,10/08/2018,Office machinery consumables,Business Support,X M A LIMITED,,Data Not Provided,,5106238483,Office Machine Consumables 18-19,NG11 7EP,781.15,
MHCLG,PINS,10/08/2018,Office machinery consumables,Business Support,X M A LIMITED,,Data Not Provided,,5106238515,Office Machine Consumables 18-19,NG11 7EP,976.44,
MHCLG,PINS,13/08/2018,Agency Staff,TR People,HAYS SPECIALIST RECRUITMENT LTD,,Large,,5106238534,HR BP - SL,NW1 2AF,"3,832.56",
MHCLG,PINS,13/08/2018,Agency Staff,TR People,REED SPECIALIST RECRUITMENT LTD,,Large,,5106238364,AO HR GDPR MC,SW20 0BA,482.30,
MHCLG,PINS,13/08/2018,Agency Staff,TR People,REED SPECIALIST RECRUITMENT LTD,,Large,,5106238533,AO HR ADVICE CW,SW20 0BA,569.88,
MHCLG,PINS,13/08/2018,Courier Services,Estates,ROYAL MAIL,,Large,,5106238554,Outgoing post,S49 1HQ,"1,928.02",
MHCLG,PINS,13/08/2018,EXP � PURCHASE OF GOODS /SERVICES R & D,TR Transformation,HAYS SPECIALIST RECRUITMENT LTD,,Large,,5106238555,ODT Benefits Analyst Resource,NW1 2AF,"2,983.75",
MHCLG,PINS,13/08/2018,IT SUPPORT,ICT Digital Services,AGILE SOLUTIONS LTD,,Large,,5106238562,GDPR Practitioner,G2 2NR,"1,110.00",
MHCLG,PINS,13/08/2018,IT SUPPORT,ICT Digital Services,AIIMI LTD,,Medium,,5106238280,Horizon transition to Azure Cloud,MK9 1JL,"10,237.50",
MHCLG,PINS,13/08/2018,IT SUPPORT,TR Digital Transformation,AIIMI LTD,,Medium,,5106238282,Variation 1 Implementaiton Consultant,MK9 1JL,"16,380.00",
MHCLG,PINS,13/08/2018,IT SUPPORT,TR Organisational Agility,ALLEN LANE LTD,,Medium,,5106238484,Finance Planning Business Partner resour,SW1Y 6RJ,"3,427.68",
MHCLG,PINS,13/08/2018,IT SUPPORT,TR Digital Transformation,HAYS SPECIALIST RECRUITMENT LTD,,Large,,5106238418,Commercial Digital Category Mgr,NW1 2AF,"3,497.28",
MHCLG,PINS,13/08/2018,IT SUPPORT,TR Digital Transformation,HAYS SPECIALIST RECRUITMENT LTD,,Large,,5106238419,Commercial Digital Category Mgr,NW1 2AF,"2,797.82",
MHCLG,PINS,13/08/2018,IT SUPPORT,TR Digital Transformation,MEDLEY BUSINESS SOLUTIONS LIMITED,,Medium,,5106238420,Digital Services technical Architect,GU4 8PR,"6,177.60",
MHCLG,PINS,13/08/2018,Mobile phone costs,ICT Digital Services,GAMMA TELECOM LTD,,Large,,5106238564,Mobile telephony services 2018-19,EC4M 7RD,"6,472.66",
MHCLG,PINS,13/08/2018,NSI Fees & Expenses,NSI Fees Planning,EGGLETON PLANNING AND DESIGN,,Micro,,2100063262,,HG4 2QF,"1,344.00",
MHCLG,PINS,13/08/2018,NSI Fees & Expenses,NSI Expenses Planning,EGGLETON PLANNING AND DESIGN,,Micro,,2100063262,,HG4 2QF,134.64,
MHCLG,PINS,13/08/2018,NSI Fees & Expenses,NSI Fees Planning,GARY DEANE ASSOCIATES LIMITED,,Micro,,2100063260,,M33 6RG,"2,016.00",
MHCLG,PINS,13/08/2018,NSI Fees & Expenses,NSI Expenses Planning,GARY DEANE ASSOCIATES LIMITED,,Micro,,2100063260,,M33 6RG,218.70,
MHCLG,PINS,13/08/2018,NSI Fees & Expenses,NSI Fees Planning,MR R J MAILE,,Not assigned,,2100063257,,BN11 1QG,"2,688.00",
MHCLG,PINS,14/08/2018,Agency Staff,TR People,HAYS SPECIALIST RECRUITMENT LTD,,Large,,5106238607,HR BP - SL,NW1 2AF,"3,310.92",
MHCLG,PINS,14/08/2018,Agency Staff,TR Digital Transformation,REED SPECIALIST RECRUITMENT LTD,,Large,,5106238573,Build Suport,SW20 0BA,"1,012.96",
MHCLG,PINS,14/08/2018,Agency Staff,Planning Casework Operations,REED SPECIALIST RECRUITMENT LTD,,Large,,5106238574,AO AGENCY STAFF JJF,SW20 0BA,607.96,
MHCLG,PINS,14/08/2018,Agency Staff,Planning Casework Operations,REED SPECIALIST RECRUITMENT LTD,,Large,,5106238575,Agency AO MR,SW20 0BA,522.84,
MHCLG,PINS,14/08/2018,Agency Staff,Planning Casework Operations,REED SPECIALIST RECRUITMENT LTD,,Large,,5106238577,Agency AO JM,SW20 0BA,352.61,
MHCLG,PINS,14/08/2018,Agency Staff,Transformation Prog Management Office,REED SPECIALIST RECRUITMENT LTD,,Large,,5106238580,Programme Support role SB,SW20 0BA,890.82,
MHCLG,PINS,14/08/2018,Agency Staff,Transformation Prog Management Office,REED SPECIALIST RECRUITMENT LTD,,Large,,5106238581,Programme Support Role,SW20 0BA,929.00,
MHCLG,PINS,14/08/2018,Agency Staff,Planning Casework Operations,REED SPECIALIST RECRUITMENT LTD,,Large,,5106238582,AO AGENCY STAFF EJ,SW20 0BA,607.96,
MHCLG,PINS,14/08/2018,Agency Staff,"Finance, Commercial & Performance",REED SPECIALIST RECRUITMENT LTD,,Large,,5106238598,EO For Finance,SW20 0BA,905.16,
MHCLG,PINS,14/08/2018,Agency Staff,Inspector Development & Support Team,REED SPECIALIST RECRUITMENT LTD,,Large,,5106238611,Temp staff for IDST,SW20 0BA,446.65,
MHCLG,PINS,14/08/2018,EXP � PURCHASE OF GOODS /SERVICES R & D,Research and Development,RAINMAKER SOLUTIONS LTD,,Medium,,5106238361,ODT Alpha(variation 007),MK18 1HD,"85,000.00",
MHCLG,PINS,14/08/2018,IT SUPPORT,TR Digital Transformation,HAYS SPECIALIST RECRUITMENT LTD,,Large,,5106238596,IT Business Analyst Resource,NW1 2AF,"2,877.55",
MHCLG,PINS,14/08/2018,NSI Fees & Expenses,NSI Fees Planning,CARBROOK ASSOCIATES,,Micro,,2100063296,,M32 8QU,"2,520.00",
MHCLG,PINS,14/08/2018,NSI Fees & Expenses,NSI Expenses Planning,CARBROOK ASSOCIATES,,Micro,,2100063296,,M32 8QU,28.70,
MHCLG,PINS,14/08/2018,NSI Fees & Expenses,NSI Fees Planning,CARBROOK ASSOCIATES,,Micro,,2100063299,,M32 8QU,"1,400.00",
MHCLG,PINS,14/08/2018,NSI Fees & Expenses,NSI Expenses Planning,CARBROOK ASSOCIATES,,Micro,,2100063299,,M32 8QU,193.50,
MHCLG,PINS,14/08/2018,Office machinery consumables,Business Support,X M A LIMITED,,Data Not Provided,,5106238556,Office Machine Consumables,NG11 7EP,585.86,
MHCLG,PINS,15/08/2018,Agency Staff,"Policy, Knowledge & Quality",REED SPECIALIST RECRUITMENT LTD,,Large,,5106238578,Agency Staff for Library,SW20 0BA,599.84,
MHCLG,PINS,15/08/2018,Agency Staff,Planning Casework Operations,REED SPECIALIST RECRUITMENT LTD,,Large,,5106238638,CLASSIC CASEWORK - ES,SW20 0BA,674.74,
MHCLG,PINS,15/08/2018,Specialist Technical Support,Transformation Prog Management Office,METHODS PROFESSIONAL SERVICES,,Small,,5106238634,Programme Management Specialist,EC1A 4EN,"25,080.00",
MHCLG,PINS,15/08/2018,Translations,Infrastructure Planning,TROSOL CYFYNGEDIG,,Small,,5106238639,Welsh Translation Services NID,CF14 5GH,787.46,
MHCLG,PINS,16/08/2018,Agency Staff,Governance & Strategic Support,REED SPECIALIST RECRUITMENT LTD,,Large,,5106238571,Agency Staff DB,SW20 0BA,824.86,
MHCLG,PINS,16/08/2018,Agency Staff,Planning Casework Operations,REED SPECIALIST RECRUITMENT LTD,,Large,,5106238572,CLASSIC CASEWORK - KR,SW20 0BA,688.50,
MHCLG,PINS,16/08/2018,Agency Staff,TR People,REED SPECIALIST RECRUITMENT LTD,,Large,,5106238579,AO HR ADVICE CW,SW20 0BA,581.20,
MHCLG,PINS,16/08/2018,Agency Staff,Planning Casework Operations,REED SPECIALIST RECRUITMENT LTD,,Large,,5106238587,CLASSIC CASEWORK - CM,SW20 0BA,685.80,
MHCLG,PINS,16/08/2018,Agency Staff,TR People,REED SPECIALIST RECRUITMENT LTD,,Large,,5106238600,AO HR Advice KA,SW20 0BA,599.84,
MHCLG,PINS,16/08/2018,Common Land,Common Land,D E F R A,,Public Bodies,,2100063341,,YO1 7PX,"23,000.00",
MHCLG,PINS,16/08/2018,"Furniture, Fittings and carpets",TR Organisational Agility,AMARELLE LTD,,Small,,5106238669,Main Works,BS2 0QD,"37,923.30",
MHCLG,PINS,16/08/2018,IT SUPPORT,Transformation Prog Management Office,METHODS PROFESSIONAL SERVICES,,Small,,5106238648,PM Performance Recovery Project,EC1A 4EN,"1,048.02",
MHCLG,PINS,16/08/2018,NSI Fees & Expenses,NSI Fees Planning,FITZSIMON PLANNING & DEVELOPMENT,,Micro,,2100063339,,CH7 5NL,"1,470.00",
MHCLG,PINS,16/08/2018,NSI Fees & Expenses,NSI Fees Planning,MARTIN ANDREWS PLANNING CONSULTANCY,,Micro,,2100063313,,BH15 1HH,"2,016.00",
MHCLG,PINS,16/08/2018,NSI Fees & Expenses,NSI Expenses Planning,MARTIN ANDREWS PLANNING CONSULTANCY,,Micro,,2100063313,,BH15 1HH,120.60,
MHCLG,PINS,16/08/2018,NSI Fees & Expenses,NSI Fees Planning,W S C WADRUP INDEPENDENT CONS LTD,,Micro,,2100063314,,MK43 7DU,"9,180.00",
MHCLG,PINS,16/08/2018,NSI Fees & Expenses,NSI Expenses Planning,W S C WADRUP INDEPENDENT CONS LTD,,Micro,,2100063314,,MK43 7DU,69.80,
MHCLG,PINS,16/08/2018,Translations,Wales Director,TROSOL CYFYNGEDIG,,Small,,2100063371,Wales Translation Services 2016-2017,CF14 5GH,"-3,310.74",
MHCLG,PINS,16/08/2018,Translations,Wales Director,TROSOL CYFYNGEDIG,,Small,,5106238630,Wales Translation Services 2016-2017,CF14 5GH,"3,310.74",
MHCLG,PINS,17/08/2018,Agency Staff,TR People,HAYS SPECIALIST RECRUITMENT LTD,,Large,,5106238688,HR BP - SL,NW1 2AF,"3,832.56",
MHCLG,PINS,17/08/2018,Cycle to Work Scheme,Finance accounting adjustments,EDENRED (UK GROUP) LTD,,Large,,2100063369,,SW1V 2RS,"1,861.52",
MHCLG,PINS,17/08/2018,Cycle to Work Scheme,Finance accounting adjustments,EDENRED (UK GROUP) LTD,,Large,,2100063370,,SW1V 2RS,987.64,
MHCLG,PINS,17/08/2018,Cycle to Work Scheme,Finance accounting adjustments,EDENRED (UK GROUP) LTD,,Large,,2300000122,,SW1V 2RS,"-2,549.22",
MHCLG,PINS,17/08/2018,Legal Fees,"Policy, Knowledge & Quality",MHCLG,,Public Bodies,,5106238697,Legal Services from GLD 18/19,HP2 4XN,"148,612.00",
MHCLG,PINS,20/08/2018,IT SUPPORT,TR Digital Transformation,HAYS SPECIALIST RECRUITMENT LTD,,Large,,5106238681,IT Business Analyst Resource,NW1 2AF,"3,197.28",
MHCLG,PINS,20/08/2018,NSI Fees & Expenses,NSI Fees Planning,CARBROOK ASSOCIATES,,Micro,,2100063399,,M32 8QU,"1,400.00",
MHCLG,PINS,20/08/2018,NSI Fees & Expenses,NSI Expenses Planning,CARBROOK ASSOCIATES,,Micro,,2100063399,,M32 8QU,97.90,
MHCLG,PINS,20/08/2018,NSI Fees & Expenses,NSI Fees Planning,D C PLANNING LTD,,Data Not Provided,,2100063368,,BH14 8AL,"2,016.00",
MHCLG,PINS,20/08/2018,NSI Fees & Expenses,NSI Expenses Planning,D C PLANNING LTD,,Data Not Provided,,2100063368,,BH14 8AL,263.33,
MHCLG,PINS,20/08/2018,NSI Fees & Expenses,NSI Fees Planning,GARY DEANE ASSOCIATES LIMITED,,Micro,,2100063397,,M33 6RG,"2,016.00",
MHCLG,PINS,20/08/2018,NSI Fees & Expenses,NSI Expenses Planning,GARY DEANE ASSOCIATES LIMITED,,Micro,,2100063397,,M33 6RG,187.38,
MHCLG,PINS,20/08/2018,NSI Fees & Expenses,NSI Fees Planning,MARTIN ANDREWS PLANNING CONSULTANCY,,Micro,,2100063396,,BH15 1HH,"2,184.00",
MHCLG,PINS,20/08/2018,NSI Fees & Expenses,NSI Expenses Planning,MARTIN ANDREWS PLANNING CONSULTANCY,,Micro,,2100063396,,BH15 1HH,153.36,
MHCLG,PINS,20/08/2018,Office Supplies,Business Support,BANNER BUSINESS SUPPLIES LTD,,Large,,5106238725,Office Stationery 18-19,S9 1XU,255.71,
MHCLG,PINS,20/08/2018,Office Supplies,Business Support,BANNER BUSINESS SUPPLIES LTD,,Large,,5106238725,Paper 18-19,S9 1XU,236.28,
MHCLG,PINS,20/08/2018,Translations,Wales Director,TROSOL CYFYNGEDIG,,Small,,5106238716,PINS Wales Translations Costs 2018-19,CF14 5GH,"3,972.89",
MHCLG,PINS,21/08/2018,Agency Staff,TR Digital Transformation,REED SPECIALIST RECRUITMENT LTD,,Large,,5106238746,Build Suport,SW20 0BA,"1,012.96",
MHCLG,PINS,21/08/2018,Agency Staff,TR People,REED SPECIALIST RECRUITMENT LTD,,Large,,5106238766,AO HR ADVICE CW,SW20 0BA,558.55,
MHCLG,PINS,21/08/2018,Agency Staff,TR People,REED SPECIALIST RECRUITMENT LTD,,Large,,5106238767,AO HR GDPR MC,SW20 0BA,478.26,
MHCLG,PINS,21/08/2018,IT SUPPORT,ICT Digital Services,THIRTY FOUR FEET LTD,,Micro,,5106238751,IT tester services - contract extension,NP15 1QB,"1,680.00",
MHCLG,PINS,21/08/2018,NSI Fees & Expenses,NSI Fees Planning,ENERGIA CONSULTANTS LTD,,Micro,,2100063431,,GL6 0SA,"1,260.00",
MHCLG,PINS,21/08/2018,NSI Fees & Expenses,NSI Expenses Planning,ENERGIA CONSULTANTS LTD,,Micro,,2100063431,,GL6 0SA,109.05,
MHCLG,PINS,21/08/2018,Technical Aids for the disabled,Human Resources,HEALTH  MANAGEMENT LTD,,Medium,,5106238763,Health Managemtn 2018/19,BN8 5NN,"1,449.60",
MHCLG,PINS,22/08/2018,Agency Staff,Planning Casework Operations,REED SPECIALIST RECRUITMENT LTD,,Large,,5106238741,CLASSIC CASEWORK - CM,SW20 0BA,685.80,
MHCLG,PINS,22/08/2018,Agency Staff,Planning Casework Operations,REED SPECIALIST RECRUITMENT LTD,,Large,,5106238753,AO AGENCY STAFF EJ,SW20 0BA,393.16,
MHCLG,PINS,22/08/2018,Agency Staff,Planning Casework Operations,REED SPECIALIST RECRUITMENT LTD,,Large,,5106238754,AO AGENCY STAFF JJF,SW20 0BA,599.84,
MHCLG,PINS,22/08/2018,IT SUPPORT,ICT Digital Services,THIRTY FOUR FEET LTD,,Micro,,5106238769,IT tester services - contract extension,NP15 1QB,"2,100.00",
MHCLG,PINS,22/08/2018,TSOL Adverse Costs,"Policy, Knowledge & Quality",GOVERNMENT LEGAL DEPARTMENT,,Public Bodies,,2100063433,,WC2B 4TS,"6,344.80",
MHCLG,PINS,23/08/2018,Agency Staff,Transformation Prog Management Office,REED SPECIALIST RECRUITMENT LTD,,Large,,5106238740,Programme Support Role,SW20 0BA,820.82,
MHCLG,PINS,23/08/2018,Agency Staff,Transformation Prog Management Office,REED SPECIALIST RECRUITMENT LTD,,Large,,5106238742,Programme Support role SB,SW20 0BA,903.55,
MHCLG,PINS,23/08/2018,Agency Staff,Planning Casework Operations,REED SPECIALIST RECRUITMENT LTD,,Large,,5106238743,Agency AO MR,SW20 0BA,583.63,
MHCLG,PINS,23/08/2018,Agency Staff,Governance & Strategic Support,REED SPECIALIST RECRUITMENT LTD,,Large,,5106238747,Agency Staff DB,SW20 0BA,874.34,
MHCLG,PINS,23/08/2018,Agency Staff,Inspector Development & Support Team,REED SPECIALIST RECRUITMENT LTD,,Large,,5106238748,Temp staff for IDST,SW20 0BA,634.72,
MHCLG,PINS,23/08/2018,Agency Staff,Enforcements,REED SPECIALIST RECRUITMENT LTD,,Large,,5106238789,Agency Staff RT,SW20 0BA,411.48,
MHCLG,PINS,23/08/2018,Agency Staff,"Policy, Knowledge & Quality",REED SPECIALIST RECRUITMENT LTD,,Large,,5106238790,Agency Staff for Library,SW20 0BA,599.84,
MHCLG,PINS,23/08/2018,Agency Staff,Planning Casework Operations,REED SPECIALIST RECRUITMENT LTD,,Large,,5106238792,CLASSIC CASEWORK - ES,SW20 0BA,674.74,
MHCLG,PINS,23/08/2018,Agency Staff,Planning Casework Operations,REED SPECIALIST RECRUITMENT LTD,,Large,,5106238793,Agency AO JM,SW20 0BA,607.96,
MHCLG,PINS,23/08/2018,Agency Staff,Planning Casework Operations,REED SPECIALIST RECRUITMENT LTD,,Large,,5106238794,Agency AO CB,SW20 0BA,422.69,
MHCLG,PINS,23/08/2018,Courier Services,Estates,ROYAL MAIL,,Large,,5106238801,Outgoing post,S49 1HQ,"3,405.85",
MHCLG,PINS,23/08/2018,IT - Service Contracts,ICT Digital Services,MHCLG,,Public Bodies,,5106238778,Recharge for Daisy telephony services,HP2 4XN,"18,581.64",
MHCLG,PINS,23/08/2018,IT - Service Contracts,ICT Digital Services,MHCLG,,Public Bodies,,5106238780,MHCLG recharge for Fujitsu Connect,HP2 4XN,"299,709.89",
MHCLG,PINS,23/08/2018,NSI Fees & Expenses,NSI Fees Planning,ANDREW DALE,,Not assigned,,2100063458,,DE23 8DP,"2,702.00",
MHCLG,PINS,23/08/2018,NSI Fees & Expenses,NSI Expenses Planning,ANDREW DALE,,Not assigned,,2100063458,,DE23 8DP,514.70,
MHCLG,PINS,23/08/2018,NSI Fees & Expenses,NSI Fees Planning,EGGLETON PLANNING AND DESIGN,,Micro,,2100063454,,HG4 2QF,"1,344.00",
MHCLG,PINS,23/08/2018,NSI Fees & Expenses,NSI Expenses Planning,EGGLETON PLANNING AND DESIGN,,Micro,,2100063454,,HG4 2QF,180.00,
MHCLG,PINS,23/08/2018,NSI Fees & Expenses,NSI Fees Planning,FITZSIMON PLANNING & DEVELOPMENT,,Micro,,2100063455,,CH7 5NL,"2,800.00",
MHCLG,PINS,23/08/2018,NSI Fees & Expenses,NSI Expenses Planning,FITZSIMON PLANNING & DEVELOPMENT,,Micro,,2100063455,,CH7 5NL,6.00,
MHCLG,PINS,23/08/2018,NSI Fees & Expenses,NSI Fees Planning,S P PLANNING,,Small,,2100063457,,EC1M 5QA,"1,008.00",
MHCLG,PINS,23/08/2018,NSI Fees & Expenses,NSI Expenses Planning,S P PLANNING,,Small,,2100063457,,EC1M 5QA,7.92,
MHCLG,PINS,23/08/2018,Specialist Technical Support,"Finance, Commercial & Performance",ALLEN LANE LTD,,Medium,,5106238807,FPBP Resource ext,SW1Y 6RJ,"6,855.36",
MHCLG,PINS,23/08/2018,Training,"Finance, Commercial & Performance",SR SUPPLY CHAIN CONSULTANTS LTD,,Micro,,5106238809,CIPS AD3 RS-DS,BB1 2QY,623.00,
MHCLG,PINS,23/08/2018,Training,"Finance, Commercial & Performance",SR SUPPLY CHAIN CONSULTANTS LTD,,Micro,,5106238809,CIPS Ass fee,BB1 2QY,105.00,
MHCLG,PINS,24/08/2018,IT SUPPORT,TR Organisational Agility,ALLEN LANE LTD,,Medium,,5106238831,Finance Planning Business Partner resour,SW1Y 6RJ,"2,579.71",
MHCLG,PINS,24/08/2018,NSI Fees & Expenses,NSI Fees Planning,ELIZABETH LAWRENCE LTD,,Micro,,2100063517,,RH20 3LY,"4,032.00",
MHCLG,PINS,24/08/2018,NSI Fees & Expenses,NSI Expenses Planning,ELIZABETH LAWRENCE LTD,,Micro,,2100063517,,RH20 3LY,116.82,
MHCLG,PINS,24/08/2018,NSI Fees & Expenses,NSI Fees Planning,GARY DEANE ASSOCIATES LIMITED,,Micro,,2100063515,,M33 6RG,"1,680.00",
MHCLG,PINS,24/08/2018,NSI Fees & Expenses,NSI Expenses Planning,GARY DEANE ASSOCIATES LIMITED,,Micro,,2100063515,,M33 6RG,238.14,
MHCLG,PINS,24/08/2018,NSI Fees & Expenses,NSI Fees Planning,KIM BENNETT PLANNING SERVICES,,Micro,,2100063518,,CT2 7ET,840.00,
MHCLG,PINS,24/08/2018,NSI Fees & Expenses,NSI Expenses Planning,KIM BENNETT PLANNING SERVICES,,Micro,,2100063518,,CT2 7ET,40.50,
MHCLG,PINS,24/08/2018,Specialist Technical Support,"Finance, Commercial & Performance",ALLEN LANE LTD,,Medium,,5106238831,FPBP Resource ext,SW1Y 6RJ,162.43,
MHCLG,PINS,24/08/2018,Specialist Technical Support,TR Digital Transformation,HAYS SPECIALIST RECRUITMENT LTD,,Large,,2100063535,ITMP PDM until 15.10.2018,NW1 2AF,"-4,660.50",
MHCLG,PINS,24/08/2018,Specialist Technical Support,TR Digital Transformation,HAYS SPECIALIST RECRUITMENT LTD,,Large,,5106238820,ITMP PDM until 15.10.2018,NW1 2AF,"4,660.50",
MHCLG,PINS,24/08/2018,Training,"Policy, Knowledge & Quality",PDP COMPANIES LTD,,Small,,5106238841,FOI Practical Training,SW9 6DE,"1,370.00",
MHCLG,PINS,24/08/2018,Vehicle hire,Business Support,ENTERPRISE RENT-A-CAR,,Large,,5106238827,hire car,TW20 9FB,307.48,
MHCLG,PINS,28/08/2018,Agency Staff,"Finance, Commercial & Performance",REED SPECIALIST RECRUITMENT LTD,,Large,,5106238745,EO For Finance,SW20 0BA,893.26,
MHCLG,PINS,28/08/2018,Courier Services,Estates,PARCELFORCE WORLDWIDE,,Large,,2100063574,Courier service,MK7 8LE,"-4,260.66",
MHCLG,PINS,28/08/2018,Courier Services,Estates,PARCELFORCE WORLDWIDE,,Large,,5106238864,Courier service,MK7 8LE,"4,260.66",
MHCLG,PINS,28/08/2018,NSI Fees & Expenses,NSI Fees Planning,4 PLANNING DELIVERY LTD,,Micro,,2100063534,,S8 9BG,"1,036.00",
MHCLG,PINS,28/08/2018,NSI Fees & Expenses,NSI Expenses Planning,4 PLANNING DELIVERY LTD,,Micro,,2100063534,,S8 9BG,282.03,
MHCLG,PINS,28/08/2018,Physical Storage,Business Support,RESTORE PLC,,Large,,5106238849,Blanket for offsite storage,RH1 5DY,"1,544.99",
MHCLG,PINS,28/08/2018,Physical Storage,Business Support,RESTORE PLC,,Large,,5106238850,Blanket for offsite storage,RH1 5DY,"3,118.82",
MHCLG,PINS,28/08/2018,Technical Aids for the disabled,Human Resources,HEALTH  MANAGEMENT LTD,,Medium,,5106238752,Health Managemtn 2018/19,BN8 5NN,"2,153.86",
MHCLG,PINS,29/08/2018,Agency Staff,Inspector Development & Support Team,REED SPECIALIST RECRUITMENT LTD,,Large,,5106238875,Temp staff for IDST,SW20 0BA,646.48,
MHCLG,PINS,29/08/2018,Agency Staff,TR People,REED SPECIALIST RECRUITMENT LTD,,Large,,5106238886,AO HR ADVICE CW,SW20 0BA,543.46,
MHCLG,PINS,29/08/2018,Agency Staff,"Policy, Knowledge & Quality",REED SPECIALIST RECRUITMENT LTD,,Large,,5106238900,Agency Staff for Library,SW20 0BA,539.05,
MHCLG,PINS,29/08/2018,Agency Staff,Transformation Prog Management Office,REED SPECIALIST RECRUITMENT LTD,,Large,,5106238902,Programme Support role SB,SW20 0BA,674.48,
MHCLG,PINS,29/08/2018,Agency Staff,Transformation Prog Management Office,REED SPECIALIST RECRUITMENT LTD,,Large,,5106238904,Programme Support Role,SW20 0BA,941.72,
MHCLG,PINS,29/08/2018,Agency Staff,Governance & Strategic Support,REED SPECIALIST RECRUITMENT LTD,,Large,,5106238905,Agency Staff DB,SW20 0BA,824.86,
MHCLG,PINS,29/08/2018,IT SUPPORT,TR Digital Transformation,HAYS SPECIALIST RECRUITMENT LTD,,Large,,5106238822,IT Business Analyst Resource,NW1 2AF,"2,877.55",
MHCLG,PINS,29/08/2018,NSI Fees & Expenses,NSI Fees Planning,ENERGIA CONSULTANTS LTD,,Micro,,2100063571,,GL6 0SA,"1,120.00",
MHCLG,PINS,29/08/2018,NSI Fees & Expenses,NSI Expenses Planning,ENERGIA CONSULTANTS LTD,,Micro,,2100063571,,GL6 0SA,106.80,
MHCLG,PINS,29/08/2018,NSI Fees & Expenses,NSI Fees Planning,H J L PLANNING,,Micro,,2100063572,,CM3 1HZ,"1,120.00",
MHCLG,PINS,29/08/2018,NSI Fees & Expenses,NSI Expenses Planning,H J L PLANNING,,Micro,,2100063572,,CM3 1HZ,52.95,
MHCLG,PINS,29/08/2018,NSI Fees & Expenses,NSI Fees Planning,H J L PLANNING,,Micro,,2100063573,,CM3 1HZ,"1,400.00",
MHCLG,PINS,29/08/2018,NSI Fees & Expenses,NSI Expenses Planning,H J L PLANNING,,Micro,,2100063573,,CM3 1HZ,105.83,
MHCLG,PINS,29/08/2018,Web Services,ICT Digital Services,MEMSET LIMITED,,Small,,5106238892,Hosting of mini servers FY 2018-19,GU6 8TB,561.42,
MHCLG,PINS,29/08/2018,Web Services,ICT Digital Services,MEMSET LIMITED,,Small,,5106238893,Hosting of mini servers FY 2018-19,GU6 8TB,583.02,
MHCLG,PINS,30/08/2018,Agency Staff,Enforcements,REED SPECIALIST RECRUITMENT LTD,,Large,,5106238910,Agency Staff RT,SW20 0BA,676.66,
MHCLG,PINS,30/08/2018,Agency Staff,"Finance, Commercial & Performance",REED SPECIALIST RECRUITMENT LTD,,Large,,5106238915,EO For Finance,SW20 0BA,410.89,
MHCLG,PINS,30/08/2018,Agency Staff,Planning Casework Operations,REED SPECIALIST RECRUITMENT LTD,,Large,,5106238916,CLASSIC CASEWORK - KR,SW20 0BA,679.32,
MHCLG,PINS,30/08/2018,Agency Staff,Planning Casework Operations,REED SPECIALIST RECRUITMENT LTD,,Large,,5106238917,CLASSIC CASEWORK - CM,SW20 0BA,685.80,
MHCLG,PINS,30/08/2018,Agency Staff,Planning Casework Operations,REED SPECIALIST RECRUITMENT LTD,,Large,,5106238918,CLASSIC CASEWORK - ES,SW20 0BA,541.62,
MHCLG,PINS,30/08/2018,Courier Services,Estates,PARCELFORCE WORLDWIDE,,Large,,5106238914,Courier Service,MK7 8LE,"4,260.66",
MHCLG,PINS,30/08/2018,Office Supplies,Business Support,BANNER BUSINESS SUPPLIES LTD,,Large,,5106238922,Office Stationery 18-19,S9 1XU,178.37,
MHCLG,PINS,30/08/2018,Office Supplies,Business Support,BANNER BUSINESS SUPPLIES LTD,,Large,,5106238922,Paper 18-19,S9 1XU,186.81,
MHCLG,PINS,30/08/2018,Specialist Technical Support,TR Digital Transformation,HAYS SPECIALIST RECRUITMENT LTD,,Large,,2100063627,ITMP PDM,NW1 2AF,"-4,660.50",
MHCLG,PINS,30/08/2018,Specialist Technical Support,TR Digital Transformation,HAYS SPECIALIST RECRUITMENT LTD,,Large,,5106238940,ITMP PDM,NW1 2AF,"4,660.50",
MHCLG,PINS,30/08/2018,Translations,Wales Director,TROSOL CYFYNGEDIG,,Small,,5106238909,PINS Wales Translations Costs 2018-19,CF14 5GH,"1,980.00",
MHCLG,PINS,31/08/2018,Agency Staff,TR Digital Transformation,REED SPECIALIST RECRUITMENT LTD,,Large,,5106238945,Build Suport,SW20 0BA,810.36,
MHCLG,PINS,31/08/2018,Agency Staff,TR Digital Transformation,REED SPECIALIST RECRUITMENT LTD,,Large,,5106238946,Build Suport,SW20 0BA,"1,012.96",
MHCLG,PINS,31/08/2018,EXP � PURCHASE OF GOODS /SERVICES R & D,Research and Development,RAINMAKER SOLUTIONS LTD,,Medium,,5106238734,ODT Alpha(variation 007),MK18 1HD,"79,000.00",
MHCLG,PINS,31/08/2018,IT SUPPORT,TR Digital Transformation,HAYS SPECIALIST RECRUITMENT LTD,,Large,,5106238866,Commercial Digital Category Mgr,NW1 2AF,"3,147.55",
MHCLG,PINS,31/08/2018,IT SUPPORT,TR Digital Transformation,HAYS SPECIALIST RECRUITMENT LTD,,Large,,5106238867,Commercial Digital Category Mgr,NW1 2AF,"3,497.28",
MHCLG,PINS,31/08/2018,IT SUPPORT,TR Digital Transformation,HAYS SPECIALIST RECRUITMENT LTD,,Large,,5106238869,Commercial Digital Category Mgr,NW1 2AF,"2,797.82",
MHCLG,PINS,31/08/2018,Legal Fees,Wales Director,GOVERNMENT LEGAL DEPT,,Public Bodies,,5106238942,Legal Fees,WC2B 4TS,"5,808.72",
MHCLG,PINS,31/08/2018,Legal Fees,Wales Director,GOVERNMENT LEGAL DEPT,,Public Bodies,,5106238942,Legal Fees / Service Non VAT,WC2B 4TS,183.90,
